[Event "Late-Titled-Tuesday-Blitz-January-23-2024"]
[Site "Chess.com"]
[Date "2024.01.23"]
[Round "8"]
[White "tgpgoat"]
[Black "Chessdreamer2020"]
[Result "1/2-1/2"]
[WhiteElo "2431"]
[BlackElo "2538"]
[TimeControl "180+1"]
[EndTime "15:28:01 PST"]
[Termination "Game drawn by repetition"]

1. Nf3 {[%clk 0:03:00.9]} 1... d6 {[%clk 0:02:59.6]} 2. g3 {[%clk 0:03:01.4]}
2... e5 {[%clk 0:02:59.5]} 3. d3 {[%clk 0:03:01.3]} 3... Nc6 {[%clk 0:02:59.6]}
4. Bg2 {[%clk 0:03:01.8]} 4... g6 {[%clk 0:03:00]} 5. O-O {[%clk 0:03:02.3]}
5... Bg7 {[%clk 0:03:00.4]} 6. c4 {[%clk 0:03:02.8]} 6... Nge7 {[%clk
0:03:00.7]} 7. Nc3 {[%clk 0:03:03]} 7... Be6 {[%clk 0:03:01.2]} 8. Rb1 {[%clk
0:03:00.8]} 8... f5 {[%clk 0:03:00.9]} 9. Ng5 {[%clk 0:02:58.6]} 9... Bg8 {[%clk
0:03:00.8]} 10. b4 {[%clk 0:02:56]} 10... h6 {[%clk 0:03:00.8]} 11. Nh3 {[%clk
0:02:55.8]} 11... Qd7 {[%clk 0:03:00.4]} 12. b5 {[%clk 0:02:55.5]} 12... Nd8
{[%clk 0:03:00.2]} 13. Bb2 {[%clk 0:02:46.6]} 13... g5 {[%clk 0:02:59.6]} 14. f4
{[%clk 0:02:44.5]} 14... g4 {[%clk 0:02:52.6]} 15. Nf2 {[%clk 0:02:42.7]} 15...
exf4 {[%clk 0:02:50.6]} 16. gxf4 {[%clk 0:02:42.9]} 16... Ng6 {[%clk 0:02:51]}
17. e4 {[%clk 0:02:40.5]} 17... Nxf4 {[%clk 0:02:44.5]} 18. exf5 {[%clk
0:02:39.5]} 18... Nxg2 {[%clk 0:02:44.3]} 19. Kxg2 {[%clk 0:02:40.4]} 19... h5
{[%clk 0:02:40.2]} 20. Qe2+ {[%clk 0:02:37.3]} 20... Kf8 {[%clk 0:02:36.1]} 21.
f6 {[%clk 0:02:35.1]} 21... Bh6 {[%clk 0:02:35.7]} 22. Nd5 {[%clk 0:02:32.7]}
22... Bxd5+ {[%clk 0:02:32.9]} 23. cxd5 {[%clk 0:02:28.8]} 23... Nf7 {[%clk
0:02:32.3]} 24. Qe7+ {[%clk 0:02:21.7]} 24... Qxe7 {[%clk 0:02:29.5]} 25. fxe7+
{[%clk 0:02:22.6]} 25... Kxe7 {[%clk 0:02:30.4]} 26. Rbe1+ {[%clk 0:02:22.6]}
26... Ne5 {[%clk 0:02:29]} 27. d4 {[%clk 0:02:21.3]} 27... Kd7 {[%clk
0:02:18.9]} 28. dxe5 {[%clk 0:02:20.2]} 28... dxe5 {[%clk 0:02:19.8]} 29. Rxe5
{[%clk 0:02:18.3]} 29... Bg7 {[%clk 0:02:18.1]} 30. Re2 {[%clk 0:02:17.9]} 30...
Bxb2 {[%clk 0:02:17.9]} 31. Rxb2 {[%clk 0:02:18.8]} 31... Rae8 {[%clk
0:02:16.9]} 32. Rc2 {[%clk 0:02:15.6]} 32... Re3 {[%clk 0:02:15.6]} 33. Rfc1
{[%clk 0:02:14.9]} 33... Rc8 {[%clk 0:02:15]} 34. Rc3 {[%clk 0:02:13.5]} 34...
Re5 {[%clk 0:02:13.9]} 35. Rd1 {[%clk 0:02:11.7]} 35... Kd6 {[%clk 0:02:12.3]}
36. Ra3 {[%clk 0:02:05.8]} 36... Ra8 {[%clk 0:02:10.6]} 37. Rad3 {[%clk
0:02:00.9]} 37... Rf8 {[%clk 0:02:07.6]} 38. R1d2 {[%clk 0:01:57.4]} 38... Rff5
{[%clk 0:02:03.5]} 39. h3 {[%clk 0:01:53]} 39... gxh3+ {[%clk 0:02:00]} 40. Nxh3
{[%clk 0:01:53.1]} 40... Rxd5 {[%clk 0:01:57.7]} 41. Nf4 {[%clk 0:01:24.5]}
41... Rxd3 {[%clk 0:01:56.9]} 42. Rxd3+ {[%clk 0:01:24.2]} 42... Kc5 {[%clk
0:01:56.2]} 43. Ne6+ {[%clk 0:01:22.6]} 43... Kb6 {[%clk 0:01:53.8]} 44. a4
{[%clk 0:01:18.7]} 44... Re5 {[%clk 0:01:47.6]} 45. Nd4 {[%clk 0:01:07.8]} 45...
Ka5 {[%clk 0:01:46.8]} 46. Rc3 {[%clk 0:01:01.4]} 46... Re7 {[%clk 0:01:44.5]}
47. Rc4 {[%clk 0:00:59.9]} 47... Kb6 {[%clk 0:01:31]} 48. Nb3 {[%clk 0:00:51.3]}
48... Re3 {[%clk 0:01:23.5]} 49. Rb4 {[%clk 0:00:48.4]} 49... a5 {[%clk
0:00:53.3]} 50. bxa6+ {[%clk 0:00:35.8]} 50... Kxa6 {[%clk 0:00:54.2]} 51. Nc5+
{[%clk 0:00:36.1]} 51... Ka5 {[%clk 0:00:54.7]} 52. Rxb7 {[%clk 0:00:36.7]}
52... c6 {[%clk 0:00:48.4]} 53. Rh7 {[%clk 0:00:26.1]} 53... Re5 {[%clk
0:00:45.8]} 54. Nd7 {[%clk 0:00:23.7]} 54... Rg5+ {[%clk 0:00:44.1]} 55. Kf3
{[%clk 0:00:23.4]} 55... Kxa4 {[%clk 0:00:44.7]} 56. Ke3 {[%clk 0:00:21.6]}
56... Kb3 {[%clk 0:00:41.4]} 57. Nf6 {[%clk 0:00:18.5]} 57... c5 {[%clk
0:00:38.5]} 58. Ne4 {[%clk 0:00:17.6]} 58... Re5 {[%clk 0:00:36.8]} 59. Kf4
{[%clk 0:00:17.4]} 59... Rd5 {[%clk 0:00:36.3]} 60. Rb7+ {[%clk 0:00:17.5]}
60... Kc4 {[%clk 0:00:33.2]} 61. Ra7 {[%clk 0:00:15.6]} 61... Kd4 {[%clk
0:00:31.7]} 62. Ra4+ {[%clk 0:00:14]} 62... c4 {[%clk 0:00:32]} 63. Nd2 {[%clk
0:00:12.6]} 63... Rc5 {[%clk 0:00:32.4]} 64. Nf3+ {[%clk 0:00:11.6]} 64... Kd3
{[%clk 0:00:31.2]} 65. Ne5+ {[%clk 0:00:11.4]} 65... Kd4 {[%clk 0:00:30.4]} 66.
Nf3+ {[%clk 0:00:11.5]} 66... Kd5 {[%clk 0:00:30.8]} 67. Ke3 {[%clk 0:00:09.3]}
67... c3 {[%clk 0:00:28.4]} 68. Rh4 {[%clk 0:00:04.8]} 68... Ke6 {[%clk
0:00:27.4]} 69. Nd4+ {[%clk 0:00:04.4]} 69... Kf6 {[%clk 0:00:27.9]} 70. Kd3
{[%clk 0:00:02.3]} 70... Kg5 {[%clk 0:00:28.2]} 71. Rh2 {[%clk 0:00:03.2]} 71...
h4 {[%clk 0:00:28.4]} 72. Nf3+ {[%clk 0:00:03.6]} 72... Kg4 {[%clk 0:00:27.8]}
73. Nxh4 {[%clk 0:00:04.1]} 73... c2 {[%clk 0:00:27.4]} 74. Rxc2 {[%clk
0:00:04.2]} 74... Rd5+ {[%clk 0:00:27.7]} 75. Kc3 {[%clk 0:00:04.4]} 75... Rc5+
{[%clk 0:00:27.6]} 76. Kb2 {[%clk 0:00:05.3]} 76... Rb5+ {[%clk 0:00:27.8]} 77.
Kc1 {[%clk 0:00:05.3]} 77... Kxh4 {[%clk 0:00:28.7]} 78. Kd2 {[%clk 0:00:06.2]}
78... Rd5+ {[%clk 0:00:29]} 79. Kc1 {[%clk 0:00:06]} 79... Kg5 {[%clk
0:00:29.9]} 80. Rc4 {[%clk 0:00:05.8]} 80... Kf5 {[%clk 0:00:29.7]} 81. Rc2
{[%clk 0:00:06.7]} 81... Ke5 {[%clk 0:00:30.3]} 82. Kb2 {[%clk 0:00:07.6]} 82...
Rd3 {[%clk 0:00:30.7]} 83. Kc1 {[%clk 0:00:08.5]} 83... Ke4 {[%clk 0:00:30.4]}
84. Rd2 {[%clk 0:00:08.6]} 84... Ra3 {[%clk 0:00:30.8]} 85. Rc2 {[%clk
0:00:09.5]} 85... Ke3 {[%clk 0:00:30.8]} 86. Kb2 {[%clk 0:00:09.9]} 86... Ra7
{[%clk 0:00:28.8]} 87. Rc3+ {[%clk 0:00:10]} 87... Kd2 {[%clk 0:00:28.7]} 88.
Rc2+ {[%clk 0:00:10.4]} 88... Kd3 {[%clk 0:00:29.3]} 89. Rc3+ {[%clk 0:00:10.8]}
89... Kd4 {[%clk 0:00:29.9]} 90. Rc2 {[%clk 0:00:11.2]} 90... Rb7+ {[%clk
0:00:30.1]} 91. Kc1 {[%clk 0:00:11.6]} 91... Kd3 {[%clk 0:00:30.2]} 92. Rd2+
{[%clk 0:00:11.9]} 92... Ke3 {[%clk 0:00:30.8]} 93. Rc2 {[%clk 0:00:12.3]} 93...
Ra7 {[%clk 0:00:30.6]} 94. Kb2 {[%clk 0:00:12.5]} 94... Kd3 {[%clk 0:00:30.3]}
95. Rc3+ {[%clk 0:00:12.7]} 95... Kd4 {[%clk 0:00:30.9]} 96. Rc2 {[%clk
0:00:13.1]} 96... Rb7+ {[%clk 0:00:31.2]} 97. Kc1 {[%clk 0:00:13.3]} 97... Rb3
{[%clk 0:00:31.7]} 98. Rd2+ {[%clk 0:00:13.3]} 98... Ke3 {[%clk 0:00:32.3]} 99.
Rc2 {[%clk 0:00:13.4]} 99... Ra3 {[%clk 0:00:31.3]} 100. Kb2 {[%clk 0:00:13.6]}
100... Ra5 {[%clk 0:00:31.8]} 101. Rc3+ {[%clk 0:00:13.9]} 101... Kd4 {[%clk
0:00:31.5]} 102. Rc2 {[%clk 0:00:14.4]} 102... Rf5 {[%clk 0:00:31.5]} 103. Kc1
{[%clk 0:00:14.5]} 103... Rf1+ {[%clk 0:00:31.7]} 104. Kb2 {[%clk 0:00:15]}
104... Rf3 {[%clk 0:00:30.9]} 105. Kc1 {[%clk 0:00:15.2]} 105... Kd3 {[%clk
0:00:31.3]} 106. Kb2 {[%clk 0:00:15.2]} 106... Rf1 {[%clk 0:00:31.2]} 107. Rc3+
{[%clk 0:00:14.5]} 107... Kd4 {[%clk 0:00:31.8]} 108. Rc2 {[%clk 0:00:14.8]}
108... Rf3 {[%clk 0:00:31.7]} 109. Kc1 {[%clk 0:00:14.4]} 109... Ra3 {[%clk
0:00:31.7]} 110. Kb2 {[%clk 0:00:14.7]} 110... Ra5 {[%clk 0:00:32.2]} 111. Kc1
{[%clk 0:00:15]} 111... Ke4 {[%clk 0:00:32.7]} 112. Kb2 {[%clk 0:00:15.4]}
112... Kd3 {[%clk 0:00:33.1]} 113. Rc3+ {[%clk 0:00:15.6]} 113... Kd4 {[%clk
0:00:33.7]} 114. Rc2 {[%clk 0:00:15.9]} 114... Rb5+ {[%clk 0:00:33.2]} 115. Kc1
{[%clk 0:00:16.3]} 115... Ke3 {[%clk 0:00:33.8]} 116. Rc3+ {[%clk 0:00:15.5]}
116... Kd4 {[%clk 0:00:33.6]} 117. Rc2 {[%clk 0:00:16]} 117... Ra5 {[%clk
0:00:34.1]} 118. Kb2 {[%clk 0:00:16.2]} 1/2-1/2

[Event "Late-Titled-Tuesday-Blitz-January-23-2024"]
[Site "Chess.com"]
[Date "2024.01.23"]
[Round "8"]
[White "rasmussvane"]
[Black "Rodalquilar"]
[Result "1/2-1/2"]
[WhiteElo "2969"]
[BlackElo "2763"]
[TimeControl "180+1"]
[EndTime "15:28:55 PST"]
[Termination "Game drawn by 50-move rule"]

1. Nf3 {[%clk 0:02:58.8]} 1... d5 {[%clk 0:03:00.2]} 2. g3 {[%clk 0:02:54.6]}
2... Nf6 {[%clk 0:03:00.3]} 3. Bg2 {[%clk 0:02:52.8]} 3... Bf5 {[%clk
0:03:00.6]} 4. O-O {[%clk 0:02:52.4]} 4... e6 {[%clk 0:03:01.1]} 5. c4 {[%clk
0:02:52.2]} 5... c6 {[%clk 0:03:01.6]} 6. Qb3 {[%clk 0:02:51.5]} 6... Qb6 {[%clk
0:03:00.3]} 7. d3 {[%clk 0:02:50.9]} 7... h6 {[%clk 0:02:58.3]} 8. cxd5 {[%clk
0:02:48.5]} 8... exd5 {[%clk 0:02:46.9]} 9. Qc2 {[%clk 0:02:48.2]} 9... Be7
{[%clk 0:02:42]} 10. Nc3 {[%clk 0:02:47.8]} 10... O-O {[%clk 0:02:40.9]} 11. e4
{[%clk 0:02:45.3]} 11... dxe4 {[%clk 0:02:41.2]} 12. dxe4 {[%clk 0:02:46.2]}
12... Bh7 {[%clk 0:02:40.6]} 13. Be3 {[%clk 0:02:46.1]} 13... Qa5 {[%clk
0:02:25.3]} 14. a3 {[%clk 0:02:42.5]} 14... Nbd7 {[%clk 0:02:18]} 15. h3 {[%clk
0:02:31.4]} 15... Rfe8 {[%clk 0:02:01.1]} 16. Nd4 {[%clk 0:02:23.1]} 16... Bf8
{[%clk 0:01:58.9]} 17. Rae1 {[%clk 0:02:13.1]} 17... Rad8 {[%clk 0:01:49.7]} 18.
Nb3 {[%clk 0:01:59.5]} 18... Qa6 {[%clk 0:01:49.5]} 19. f4 {[%clk 0:01:47.1]}
19... Qc4 {[%clk 0:01:29.2]} 20. Nd2 {[%clk 0:01:44]} 20... Qa6 {[%clk
0:01:29.5]} 21. Nb3 {[%clk 0:01:32.2]} 21... Qc4 {[%clk 0:01:29.5]} 22. Rf2
{[%clk 0:01:29.4]} 22... Nxe4 {[%clk 0:01:06.8]} 23. Nxe4 {[%clk 0:00:22.5]}
23... Qxc2 {[%clk 0:01:06.8]} 24. Rxc2 {[%clk 0:00:23.4]} 24... Bxe4 {[%clk
0:01:07]} 25. Bxe4 {[%clk 0:00:19.9]} 25... Rxe4 {[%clk 0:01:07.9]} 26. Rce2
{[%clk 0:00:19.4]} 26... Rde8 {[%clk 0:01:01.4]} 27. Kf2 {[%clk 0:00:17.5]}
27... b6 {[%clk 0:00:51.4]} 28. Kf3 {[%clk 0:00:17.3]} 28... Nf6 {[%clk
0:00:41.3]} 29. Nd4 {[%clk 0:00:14.3]} 29... Rc8 {[%clk 0:00:19.5]} 30. Bf2
{[%clk 0:00:13]} 30... Rxe2 {[%clk 0:00:19.1]} 31. Rxe2 {[%clk 0:00:13.9]} 31...
Bc5 {[%clk 0:00:15.9]} 32. Nf5 {[%clk 0:00:13.5]} 32... Bf8 {[%clk 0:00:09.6]}
33. Ne7+ {[%clk 0:00:14]} 33... Bxe7 {[%clk 0:00:10.2]} 34. Rxe7 {[%clk
0:00:14.9]} 34... Rd8 {[%clk 0:00:06.5]} 35. Rxa7 {[%clk 0:00:13.7]} 35... Rd3+
{[%clk 0:00:06.6]} 36. Ke2 {[%clk 0:00:12.4]} 36... Rb3 {[%clk 0:00:07]} 37. Bd4
{[%clk 0:00:12.6]} 37... Nd5 {[%clk 0:00:07.6]} 38. Rb7 {[%clk 0:00:07.4]} 38...
Rxg3 {[%clk 0:00:04.4]} 39. Bxb6 {[%clk 0:00:06.4]} 39... Rxh3 {[%clk
0:00:03.5]} 40. Bd4 {[%clk 0:00:03.3]} 40... Nxf4+ {[%clk 0:00:02.7]} 41. Kf2
{[%clk 0:00:03.8]} 41... Rd3 {[%clk 0:00:02.6]} 42. Bc3 {[%clk 0:00:03.9]} 42...
Nd5 {[%clk 0:00:02.7]} 43. Be1 {[%clk 0:00:03.2]} 43... Rh3 {[%clk 0:00:01.6]}
44. a4 {[%clk 0:00:03.3]} 44... Rh2+ {[%clk 0:00:02]} 45. Kf3 {[%clk 0:00:03.2]}
45... Rh3+ {[%clk 0:00:02.2]} 46. Ke2 {[%clk 0:00:03.6]} 46... Rh2+ {[%clk
0:00:02.6]} 47. Kf3 {[%clk 0:00:03.8]} 47... Rc2 {[%clk 0:00:02.1]} 48. a5
{[%clk 0:00:03.9]} 48... Rc1 {[%clk 0:00:02.7]} 49. Bd2 {[%clk 0:00:02.9]} 49...
Ra1 {[%clk 0:00:03.1]} 50. b4 {[%clk 0:00:02.7]} 50... Ra2 {[%clk 0:00:03.3]}
51. Be1 {[%clk 0:00:02.4]} 51... Ra3+ {[%clk 0:00:03.8]} 52. Ke4 {[%clk
0:00:02.6]} 52... Re3+ {[%clk 0:00:03.8]} 53. Kd4 {[%clk 0:00:03.3]} 53... Rxe1
{[%clk 0:00:04.4]} 54. a6 {[%clk 0:00:04]} 54... Ra1 {[%clk 0:00:04.7]} 55. a7
{[%clk 0:00:04.7]} 55... Nxb4 {[%clk 0:00:05.1]} 56. Rb8+ {[%clk 0:00:04.4]}
56... Kh7 {[%clk 0:00:04.8]} 57. a8=Q {[%clk 0:00:05.3]} 57... Rxa8 {[%clk
0:00:05]} 58. Rxa8 {[%clk 0:00:06.2]} 58... h5 {[%clk 0:00:05.6]} 59. Ke4 {[%clk
0:00:06.8]} 59... Nd5 {[%clk 0:00:06.1]} 60. Kf3 {[%clk 0:00:07.2]} 60... g5
{[%clk 0:00:06.1]} 61. Rc8 {[%clk 0:00:07.8]} 61... Kg6 {[%clk 0:00:05.3]} 62.
Rxc6+ {[%clk 0:00:07.9]} 62... f6 {[%clk 0:00:05.9]} 63. Rd6 {[%clk 0:00:07.9]}
63... Nf4 {[%clk 0:00:06.2]} 64. Rc6 {[%clk 0:00:08]} 64... Nh3 {[%clk
0:00:04.4]} 65. Kg3 {[%clk 0:00:08.2]} 65... Nf4 {[%clk 0:00:04.7]} 66. Kf3
{[%clk 0:00:08.9]} 66... h4 {[%clk 0:00:05.4]} 67. Kg4 {[%clk 0:00:09.3]} 67...
Ng2 {[%clk 0:00:05]} 68. Rc3 {[%clk 0:00:08.8]} 68... f5+ {[%clk 0:00:04.8]} 69.
Kf3 {[%clk 0:00:09.3]} 69... Nf4 {[%clk 0:00:05.3]} 70. Rc5 {[%clk 0:00:09.4]}
70... Kh5 {[%clk 0:00:05.8]} 71. Rxf5 {[%clk 0:00:09.4]} 71... Ng6 {[%clk
0:00:05.4]} 72. Rc5 {[%clk 0:00:09.2]} 72... Nf4 {[%clk 0:00:05.1]} 73. Rc8
{[%clk 0:00:09.4]} 73... Ng6 {[%clk 0:00:04.6]} 74. Rc7 {[%clk 0:00:09.3]} 74...
Ne5+ {[%clk 0:00:05]} 75. Ke4 {[%clk 0:00:08.9]} 75... Ng4 {[%clk 0:00:04.9]}
76. Kf3 {[%clk 0:00:08.3]} 76... Ne5+ {[%clk 0:00:05.4]} 77. Ke4 {[%clk
0:00:08.9]} 77... Ng6 {[%clk 0:00:05.8]} 78. Kf3 {[%clk 0:00:07.1]} 78... g4+
{[%clk 0:00:05.2]} 79. Kf2 {[%clk 0:00:06.6]} 79... Kg5 {[%clk 0:00:05]} 80.
Rc5+ {[%clk 0:00:06.4]} 80... Kf4 {[%clk 0:00:05.4]} 81. Rc4+ {[%clk 0:00:07.1]}
81... Kf5 {[%clk 0:00:06]} 82. Ke3 {[%clk 0:00:06.6]} 82... Ne5 {[%clk
0:00:06.4]} 83. Ra4 {[%clk 0:00:06.3]} 83... g3 {[%clk 0:00:06.2]} 84. Rxh4
{[%clk 0:00:05.6]} 84... Kg5 {[%clk 0:00:04.5]} 85. Rh8 {[%clk 0:00:04.2]} 85...
Kf5 {[%clk 0:00:02.7]} 86. Rg8 {[%clk 0:00:04.2]} 86... g2 {[%clk 0:00:02.9]}
87. Rxg2 {[%clk 0:00:04]} 87... Ng4+ {[%clk 0:00:03.6]} 88. Kf3 {[%clk
0:00:04.1]} 88... Ne5+ {[%clk 0:00:04.2]} 89. Ke3 {[%clk 0:00:04.7]} 89... Ng4+
{[%clk 0:00:04.6]} 90. Kd4 {[%clk 0:00:05.3]} 90... Kf4 {[%clk 0:00:04.8]} 91.
Re2 {[%clk 0:00:04.9]} 91... Kf5 {[%clk 0:00:03]} 92. Re8 {[%clk 0:00:04.7]}
92... Nf6 {[%clk 0:00:02.4]} 93. Re5+ {[%clk 0:00:04.1]} 93... Kf4 {[%clk
0:00:02.6]} 94. Rb5 {[%clk 0:00:03.4]} 94... Ng4 {[%clk 0:00:02.9]} 95. Rb1
{[%clk 0:00:03.6]} 95... Kf3 {[%clk 0:00:02.6]} 96. Rb3+ {[%clk 0:00:03]} 96...
Kf4 {[%clk 0:00:03.1]} 97. Rb8 {[%clk 0:00:03.1]} 97... Kf5 {[%clk 0:00:03.1]}
98. Re8 {[%clk 0:00:02.8]} 98... Nf6 {[%clk 0:00:03.2]} 99. Re1 {[%clk
0:00:03.2]} 99... Ng4 {[%clk 0:00:02.8]} 100. Rf1+ {[%clk 0:00:03.8]} 100... Kg5
{[%clk 0:00:03.2]} 101. Rf3 {[%clk 0:00:03.5]} 101... Nf6 {[%clk 0:00:02.8]}
102. Ke5 {[%clk 0:00:04.1]} 102... Ng4+ {[%clk 0:00:03.3]} 103. Ke6 {[%clk
0:00:04.7]} 103... Nh6 {[%clk 0:00:03.4]} 104. Ke5 {[%clk 0:00:02.6]} 104...
Ng4+ {[%clk 0:00:03.7]} 105. Ke4 {[%clk 0:00:03.3]} 105... Nf6+ {[%clk
0:00:04.2]} 106. Kd4 {[%clk 0:00:03.4]} 106... Ng4 {[%clk 0:00:04.7]} 107. Rf1
{[%clk 0:00:03.3]} 107... Nf6 {[%clk 0:00:04.9]} 108. Ke5 {[%clk 0:00:03.6]}
108... Ng4+ {[%clk 0:00:05.3]} 109. Ke6 {[%clk 0:00:04.3]} 109... Nh2 {[%clk
0:00:04.7]} 110. Rf5+ {[%clk 0:00:02]} 110... Kg4 {[%clk 0:00:05.1]} 111. Rf7
{[%clk 0:00:01.8]} 111... Kg5 {[%clk 0:00:05.1]} 112. Ke5 {[%clk 0:00:02]}
112... Ng4+ {[%clk 0:00:05.3]} 113. Kd4 {[%clk 0:00:01.7]} 113... Kg6 {[%clk
0:00:05.2]} 114. Rf1 {[%clk 0:00:01.5]} 114... Kg5 {[%clk 0:00:05.3]} 115. Ke4
{[%clk 0:00:01.9]} 115... Nf6+ {[%clk 0:00:05.7]} 116. Ke5 {[%clk 0:00:02.2]}
116... Ng4+ {[%clk 0:00:06.2]} 117. Ke6 {[%clk 0:00:02.9]} 117... Nh2 {[%clk
0:00:06.1]} 118. Rc1 {[%clk 0:00:03.1]} 118... Ng4 {[%clk 0:00:06.4]} 119. Rc4
{[%clk 0:00:03.1]} 119... Ne3 {[%clk 0:00:06.3]} 120. Rc5+ {[%clk 0:00:03]}
120... Kf4 {[%clk 0:00:06.4]} 121. Ra5 {[%clk 0:00:03.5]} 121... Ng4 {[%clk
0:00:06.5]} 122. Ra4+ {[%clk 0:00:04]} 122... Kg5 {[%clk 0:00:06.4]} 123. Re4
{[%clk 0:00:03.5]} 123... Nf2 {[%clk 0:00:06.7]} 124. Re2 {[%clk 0:00:03.4]}
124... Ng4 {[%clk 0:00:07.2]} 125. Kd5 {[%clk 0:00:03.5]} 125... Kf4 {[%clk
0:00:07.5]} 126. Re1 {[%clk 0:00:04]} 126... Ne3+ {[%clk 0:00:07.8]} 127. Kd4
{[%clk 0:00:04.1]} 127... Nf5+ {[%clk 0:00:08.4]} 128. Kd3 {[%clk 0:00:04.6]}
128... Kf3 {[%clk 0:00:08.2]} 129. Rf1+ {[%clk 0:00:04.9]} 129... Kg4 {[%clk
0:00:08.8]} 130. Rf2 {[%clk 0:00:05.5]} 130... Ng3 {[%clk 0:00:08.4]} 131. Ke3
{[%clk 0:00:05.7]} 131... Nf5+ {[%clk 0:00:08.8]} 132. Ke4 {[%clk 0:00:06.3]}
132... Ng3+ {[%clk 0:00:09.3]} 133. Ke5 {[%clk 0:00:06.9]} 133... Nh1 {[%clk
0:00:08.9]} 134. Rf4+ {[%clk 0:00:06.8]} 134... Kg3 {[%clk 0:00:09.4]} 135. Kf5
{[%clk 0:00:06.6]} 135... Nf2 {[%clk 0:00:09.7]} 136. Rd4 {[%clk 0:00:06.5]}
136... Kf3 {[%clk 0:00:10]} 137. Ra4 {[%clk 0:00:06.5]} 1/2-1/2

[Event "Late-Titled-Tuesday-Blitz-January-23-2024"]
[Site "Chess.com"]
[Date "2024.01.23"]
[Round "9"]
[White "KacperPolOK"]
[Black "Viktor_Poddubnyi"]
[Result "0-1"]
[WhiteElo "2490"]
[BlackElo "2295"]
[TimeControl "180+1"]
[EndTime "15:38:02 PST"]
[Termination "Viktor_Poddubnyi won by resignation"]

1. e4 {[%clk 0:02:59.9]} 1... g6 {[%clk 0:03:00.1]} 2. d4 {[%clk 0:02:58.5]}
2... Bg7 {[%clk 0:03:00.6]} 3. Nc3 {[%clk 0:02:59.2]} 3... d6 {[%clk 0:03:00.6]}
4. Bg5 {[%clk 0:02:57.9]} 4... c5 {[%clk 0:03:00.1]} 5. dxc5 {[%clk 0:02:35.5]}
5... Qa5 {[%clk 0:02:58.9]} 6. Bb5+ {[%clk 0:02:34]} 6... Bd7 {[%clk 0:02:58]}
7. Bxd7+ {[%clk 0:02:27.5]} 7... Nxd7 {[%clk 0:02:58.9]} 8. Bd2 {[%clk
0:02:25.8]} 8... Qxc5 {[%clk 0:02:49]} 9. Nge2 {[%clk 0:02:25.7]} 9... Ngf6
{[%clk 0:02:48.1]} 10. O-O {[%clk 0:02:24.5]} 10... O-O {[%clk 0:02:47.9]} 11.
h3 {[%clk 0:02:21.8]} 11... a6 {[%clk 0:02:47.7]} 12. Be3 {[%clk 0:02:21.6]}
12... Qc7 {[%clk 0:02:47.6]} 13. Bd4 {[%clk 0:02:20.9]} 13... Rac8 {[%clk
0:02:44.9]} 14. Qd2 {[%clk 0:02:17.6]} 14... b5 {[%clk 0:02:41.9]} 15. a3 {[%clk
0:02:17.4]} 15... Nb6 {[%clk 0:02:38.9]} 16. Bxb6 {[%clk 0:02:12.9]} 16... Qxb6
{[%clk 0:02:38.2]} 17. Rad1 {[%clk 0:02:07.1]} 17... Rc4 {[%clk 0:02:33.1]} 18.
Kh1 {[%clk 0:01:53.2]} 18... Nxe4 {[%clk 0:02:21.9]} 19. b3 {[%clk 0:01:42.7]}
19... Nxd2 {[%clk 0:02:21]} 0-1

[Event "Late-Titled-Tuesday-Blitz-January-23-2024"]
[Site "Chess.com"]
[Date "2024.01.23"]
[Round "9"]
[White "HajiyevKanan"]
[Black "Korchmar_Vasiliy"]
[Result "1-0"]
[WhiteElo "2589"]
[BlackElo "2719"]
[TimeControl "180+1"]
[EndTime "15:38:29 PST"]
[Termination "HajiyevKanan won by checkmate"]

1. d4 {[%clk 0:03:00.9]} 1... d5 {[%clk 0:02:59.3]} 2. Nf3 {[%clk 0:03:01.4]}
2... Nf6 {[%clk 0:02:59.4]} 3. c4 {[%clk 0:03:02.1]} 3... c6 {[%clk 0:03:00.1]}
4. cxd5 {[%clk 0:03:02.7]} 4... cxd5 {[%clk 0:03:01]} 5. Nc3 {[%clk 0:03:03.4]}
5... Nc6 {[%clk 0:03:01.4]} 6. Bg5 {[%clk 0:03:04.2]} 6... Ne4 {[%clk
0:02:59.9]} 7. Bf4 {[%clk 0:03:04.8]} 7... e6 {[%clk 0:02:52.3]} 8. Qb3 {[%clk
0:03:04.1]} 8... Bb4 {[%clk 0:02:44.8]} 9. e3 {[%clk 0:03:04]} 9... Qa5 {[%clk
0:02:43.3]} 10. Rc1 {[%clk 0:03:03.9]} 10... f6 {[%clk 0:02:30.9]} 11. Bd3
{[%clk 0:03:01.3]} 11... g5 {[%clk 0:02:30.7]} 12. Bg3 {[%clk 0:02:57.9]} 12...
h5 {[%clk 0:02:30.6]} 13. h4 {[%clk 0:02:40]} 13... Nxg3 {[%clk 0:02:27.5]} 14.
Bg6+ {[%clk 0:02:23.5]} 14... Kf8 {[%clk 0:02:24.5]} 15. fxg3 {[%clk 0:02:24.4]}
15... g4 {[%clk 0:02:20.6]} 16. Ng5 {[%clk 0:01:48.3]} 16... fxg5 {[%clk
0:02:15.5]} 17. O-O+ {[%clk 0:01:48.6]} 17... Kg7 {[%clk 0:02:14.4]} 18. Rf7+
{[%clk 0:01:42.3]} 18... Kxg6 {[%clk 0:02:14.8]} 19. Rcf1 {[%clk 0:01:43]} 19...
Be7 {[%clk 0:01:59.1]} 20. Qc2+ {[%clk 0:01:36.2]} 20... Kh6 {[%clk 0:01:59.5]}
21. R1f6+ {[%clk 0:01:28.2]} 21... Bxf6 {[%clk 0:01:59.9]} 22. Rxf6+ {[%clk
0:01:28.8]} 22... Kg7 {[%clk 0:02:00.6]} 23. Qg6# {[%clk 0:01:29.3]} 1-0

[Event "Late-Titled-Tuesday-Blitz-January-23-2024"]
[Site "Chess.com"]
[Date "2024.01.23"]
[Round "9"]
[White "GHANDEEVAM2003"]
[Black "Njal28"]
[Result "0-1"]
[WhiteElo "3075"]
[BlackElo "3080"]
[TimeControl "180+1"]
[EndTime "15:38:31 PST"]
[Termination "Njal28 won by checkmate"]

1. c4 {[%clk 0:03:00.9]} 1... Nf6 {[%clk 0:03:00.1]} 2. Nc3 {[%clk 0:03:00.6]}
2... e5 {[%clk 0:02:59.1]} 3. Nf3 {[%clk 0:02:59.1]} 3... Nc6 {[%clk 0:02:59.2]}
4. e3 {[%clk 0:02:59]} 4... Bb4 {[%clk 0:02:58.8]} 5. Nd5 {[%clk 0:02:59.1]}
5... e4 {[%clk 0:02:49.1]} 6. Nxb4 {[%clk 0:02:59.1]} 6... Nxb4 {[%clk
0:02:48.1]} 7. Nd4 {[%clk 0:03:00]} 7... c5 {[%clk 0:02:37.2]} 8. Nb3 {[%clk
0:03:00.1]} 8... d5 {[%clk 0:02:33.2]} 9. Nxc5 {[%clk 0:02:55.4]} 9... O-O
{[%clk 0:02:33.2]} 10. a3 {[%clk 0:02:53.4]} 10... Bg4 {[%clk 0:02:12.2]} 11. f3
{[%clk 0:02:25.4]} 11... exf3 {[%clk 0:02:12.7]} 12. gxf3 {[%clk 0:02:26.3]}
12... Ne4 {[%clk 0:02:13.2]} 13. Nxe4 {[%clk 0:01:50.1]} 13... dxe4 {[%clk
0:02:07.8]} 14. fxg4 {[%clk 0:01:48.1]} 14... Qh4+ {[%clk 0:02:06.2]} 15. Ke2
{[%clk 0:01:48.4]} 15... Qxg4+ {[%clk 0:02:06.6]} 16. Ke1 {[%clk 0:01:48.2]}
16... Qh4+ {[%clk 0:01:58.9]} 17. Ke2 {[%clk 0:01:48.2]} 17... Nd3 {[%clk
0:01:47.7]} 18. Qb3 {[%clk 0:01:36.7]} 18... Qe1# {[%clk 0:01:46.2]} 0-1